[Event "46th GRE-chT Premier 2018"]
[Site "Rio Achaia"]
[Date "2018.07.10"]
[Round "1"]
[White "Matthaiaki, Nefeli"]
[Black "Tafani, Kleinta"]
[Result "0-1"]
[ECO "B34"]
[WhiteElo "1266"]
[BlackElo "1102"]
[Annotator "NA"]
[PlyCount "74"]
[EventDate "2018.07.10"]
[EventType "team-tourn"]
[EventCountry "GRE"]
[SourceTitle "playchess.com"]
[Source "ChessBase"]
[SourceQuality "1"]
[TimeControl "40/5400+30:1800+30"]

1. e4 {[%emt 0:00:00]} c5 {[%emt 0:00:00]} 2. Nf3 {[%emt 0:00:00]} Nc6 {[%emt 0:00:00]} 3. d4 {[%emt 0:00:06]} cxd4 {[%emt 0:00:00]} 4. Nxd4 {[%emt 0:00:11]} g6 {[%emt 0:00:06]} 5. Nc3 {[%emt 0:01:27]} Bg7 {[%emt 0:00:07]} 6. Be3 {[%emt 0:04:27]} Nf6 {[%emt 0:00:10]} 7. Be2 {[%emt 0:02:35]} O-O {[%emt 0:02:16]} 8. O-O {[%emt 0:01:59]} d5 {[%emt 0:09:39]} 9. exd5 {[%emt 0:17:00]} Nxd5 {[%emt 0:00:14]} 10. Nxd5 {[%emt 0:03:07]} Qxd5 {[%emt 0:00:46]} 11. c3 {[%emt 0:02:52]} Nxd4 {[%emt 0:04:26]} 12. Bxd4 {[%emt 0:00:35]} Bxd4 {[%emt 0:00:09]} 13. Qxd4 {[%emt 0:00:41]} Qg5 {[%emt 0:00:10]} 14. Bf3 {[%emt 0:08:44]} a6 {[%emt 0:01:55]} 15. Rfe1 {[%emt 0:09:14]} Rb8 {[%emt 0:02:41]} 16. Qa7 {[%emt 0:06:07]} Bh3 {[%emt 0:00:54]} 17. Bxb7 {[%emt 0:10:09]} e6 {[%emt 0:01:32]} 18. Qxa6 {[%emt 0:05:58]} Rfd8 {[%emt 0:00:38]} 19. Kf1 {[%emt 0:03:20]} Bf5 {[%emt 0:00:26]} 20. Rad1 {[%emt 0:03:40]} Bc2 {[%emt 0:01:45]} 21. Rxd8+ {[%emt 0:01:25]} Rxd8 {[%emt 0:00:07]} 22. Qb6 {[%emt 0:05:18]} Rb8 {[%emt 0:10:19]} 23. Qc7 {[%emt 0:01:42]} Qb5+ {[%emt 0:00:12]} 24. Kg1 {[%emt 0:05:42]} Rxb7 {[%emt 0:01:09]} 25. Qd8+ {[%emt 0:00:58]} Kg7 {[%emt 0:00:45]} 26. Qd4+ {[%emt 0:00:39]} Kf8 {[%emt 0:02:56]} 27. b3 {[%emt 0:01:24]} Qd3 {[%emt 0:03:19]} 28. Qc5+ {[%emt 0:01:17]} Kg7 {[%emt 0:00:58]} 29. Qe5+ {[%emt 0:02:01]} Kg8 {[%emt 0:00:18]} 30. h3 {[%emt 0:00:57]} Rb5 {[%emt 0:00:37]} 31. Qc7 {[%emt 0:00:53]} Qd2 {[%emt 0:03:11]} 32. Rf1 {[%emt 0:00:51]} Bd3 {[%emt 0:01:22]} 33. Qd8+ {[%emt 0:00:11]} Kg7 {[%emt 0:00:14]} 34. Qd4+ {[%emt 0:00:43]} e5 {[%emt 0:00:19]} 35. Qe3 {[%emt 0:00:32]} Qxe3 {[%emt 0:01:48]} 36. fxe3 {[%emt 0:00:18]} Bxf1 {[%emt 0:00:14]} 37. Kxf1 {[%emt 0:00:22]} Rd5 {[%emt 0:00:05]} 0-1

[Event "46th GRE-chT Premier 2018"]
[Site "Rio Achaia"]
[Date "2018.07.10"]
[Round "1"]
[White "Tzikas, Athanasios G"]
[Black "Kafantaris, Pavlos"]
[Result "0-1"]
[ECO "B12"]
[WhiteElo "1251"]
[BlackElo "1380"]
[Annotator "NA"]
[PlyCount "84"]
[EventDate "2018.07.10"]
[EventType "team-tourn"]
[EventCountry "GRE"]
[SourceTitle "playchess.com"]
[Source "ChessBase"]
[SourceQuality "1"]
[TimeControl "40/5400+30:1800+30"]

1. e4 {[%emt 0:00:00]} c6 {[%emt 0:00:00]} 2. d4 {[%emt 0:00:00]} d5 {[%emt 0:00:10]} 3. e5 {[%emt 0:00:27]} Bf5 {[%emt 0:00:54]} 4. Nf3 {[%emt 0:01:17]} e6 {[%emt 0:00:41]} 5. Bd3 {[%emt 0:02:10]} Bxd3 {[%emt 0:03:03]} 6. Qxd3 {[%emt 0:00:13]} Ne7 {[%emt 0:01:47]} 7. Bg5 {[%emt 0:04:24]} h6 {[%emt 0:00:47]} 8. Bh4 {[%emt 0:00:51]} Qc7 {[%emt 0:03:50]} 9. Nbd2 {[%emt 0:04:07]} Nd7 {[%emt 0:02:39]} 10. Bxe7 {[%emt 0:06:13]} Bxe7 {[%emt 0:00:33]} 11. O-O {[%emt 0:00:22]} O-O {[%emt 0:00:30]} 12. c4 {[%emt 0:03:08]} dxc4 {[%emt 0:06:25]} 13. Nxc4 {[%emt 0:01:20]} Nb6 {[%emt 0:02:00]} 14. Rac1 {[%emt 0:03:58]} Nxc4 {[%emt 0:02:28]} 15. Qxc4 {[%emt 0:00:33]} Qb6 {[%emt 0:02:02]} 16. Qe2 {[%emt 0:06:44]} Rfd8 {[%emt 0:01:56]} 17. Rc3 {[%emt 0:08:04]} Rd7 {[%emt 0:08:43]} 18. Rb3 {[%emt 0:07:45]} Qc7 {[%emt 0:01:43]} 19. Rc1 {[%emt 0:13:36]} Rad8 {[%emt 0:01:54]} 20. Rbc3 {[%emt 0:03:21]} Rd5 {[%emt 0:07:28]} 21. h3 {[%emt 0:07:03]} Bb4 {[%emt 0:11:46]} 22. Rd3 {[%emt 0:06:24]} Ba5 {[%emt 0:01:18]} 23. Rcd1 {[%emt 0:00:12]} Bb6 {[%emt 0:00:20]} 24. b4 {[%emt 0:02:22]} Qd7 {[%emt 0:08:09]} 25. Qd2 {[%emt 0:00:20]} c5 {[%emt 0:08:06]} 26. bxc5 {[%emt 0:01:42]} Bxc5 {[%emt 0:00:32]} 27. Qc3 {[%emt 0:03:28]} Bb6 {[%emt 0:00:41]} 28. Qb3 {[%emt 0:03:35]} Ba5 {[%emt 0:04:44]} 29. Rb1 {[%emt 0:00:55]} Bb6 {[%emt 0:01:36]} 30. Rbd1 {[%emt 0:00:11]} Qb5 {[%emt 0:05:19]} 31. Qxb5 {[%emt 0:00:40]} Rxb5 {[%emt 0:00:06]} 32. Rb3 {[%emt 0:02:56]} Rbd5 {[%emt 0:00:49]} 33. Kf1 {[%emt 0:01:16]} Rc8 {[%emt 0:00:18]} 34. Rb2 {[%emt 0:03:05]} Rc4 {[%emt 0:05:27]} 35. g4 {[%emt 0:01:27]} Rc3 {[%emt 0:04:55]} 36. Kg2 {[%emt 0:00:43]} Ra5 {[%emt 0:00:46]} 37. Rb3 {[%emt 0:02:38]} Ra3 {[%emt 0:01:34]} 38. Rxc3 {[%emt 0:00:40]} Rxc3 {[%emt 0:00:04]} 39. d5 {[%emt 0:00:49]} Rc2 {[%emt 0:02:42]} 40. d6 {[%emt 0:00:00]} Rxf2+ {[%emt 0:00:00]} 41. Kg3 {[%emt 0:00:27]} Rxa2 {[%emt 0:04:14]} 42. d7 {[%emt 0:24:26]} Bd8 {[%emt 0:01:35]} 0-1

[Event "46th GRE-chT Premier 2018"]
[Site "Rio Achaia"]
[Date "2018.07.10"]
[Round "1"]
[White "Batsi, Varvara"]
[Black "Papanagiotou, Argyro"]
[Result "1-0"]
[ECO "D00"]
[WhiteElo "1241"]
[BlackElo "1037"]
[Annotator "NA"]
[PlyCount "63"]
[EventDate "2018.07.10"]
[EventType "team-tourn"]
[EventCountry "GRE"]
[SourceTitle "playchess.com"]
[Source "ChessBase"]
[SourceQuality "1"]
[TimeControl "40/5400+30:1800+30"]

1. d4 {[%emt 0:00:00]} d5 {[%emt 0:00:00]} 2. Bf4 {[%emt 0:00:00]} Bf5 {[%emt 0:00:44]} 3. e3 {[%emt 0:00:00]} Nc6 {[%emt 0:01:13]} 4. Bd3 {[%emt 0:01:34]} e6 {[%emt 0:00:58]} 5. Bxf5 {[%emt 0:03:05]} exf5 {[%emt 0:00:15]} 6. Qd3 {[%emt 0:01:09]} Qd7 {[%emt 0:01:25]} 7. Nf3 {[%emt 0:02:48]} Nf6 {[%emt 0:04:39]} 8. h3 {[%emt 0:03:44]} h5 {[%emt 0:06:28]} 9. O-O {[%emt 0:09:02]} Bd6 {[%emt 0:02:22]} 10. Bxd6 {[%emt 0:00:34]} Qxd6 {[%emt 0:00:18]} 11. Qxf5 {[%emt 0:03:18]} Ne7 {[%emt 0:06:50]} 12. Qd3 {[%emt 0:02:14]} O-O {[%emt 0:03:00]} 13. Nbd2 {[%emt 0:00:56]} Rfe8 {[%emt 0:07:17]} 14. c4 {[%emt 0:05:28]} c5 {[%emt 0:11:01]} 15. dxc5 {[%emt 0:14:43]} Qxc5 {[%emt 0:01:12]} 16. Rac1 {[%emt 0:02:05]} Rac8 {[%emt 0:11:51]} 17. Qb3 {[%emt 0:07:23]} Qb6 {[%emt 0:03:01]} 18. Qxb6 {[%emt 0:00:51]} axb6 {[%emt 0:00:08]} 19. cxd5 {[%emt 0:01:57]} Nexd5 {[%emt 0:00:46]} 20. a3 {[%emt 0:01:30]} Ra8 {[%emt 0:04:33]} 21. Nc4 {[%emt 0:00:55]} Ne4 {[%emt 0:01:17]} 22. Rfd1 {[%emt 0:03:20]} Red8 {[%emt 0:00:35]} 23. Rd4 {[%emt 0:01:03]} Nef6 {[%emt 0:01:30]} 24. Rcd1 {[%emt 0:01:20]} b5 {[%emt 0:02:05]} 25. Nce5 {[%emt 0:03:07]} Ra4 {[%emt 0:01:50]} 26. Ng5 {[%emt 0:00:09]} Rxd4 27. Rxd4 Kf8 {[%emt 0:01:50]} 28. e4 {[%emt 0:02:33]} Nxe4 {[%emt 0:01:28]} 29. Rxe4 {[%emt 0:00:15]} Nf6 {[%emt 0:00:26]} 30. Re2 {[%emt 0:06:38]} Rd4 {[%emt 0:03:01]} 31. Nexf7 {[%emt 0:01:04]} b4 {[%emt 0:01:09]} 32. Ne6+ {[%emt 0:00:07]} 1-0

[Event "46th GRE-chT Premier 2018"]
[Site "Rio Achaia"]
[Date "2018.07.10"]
[Round "1"]
[White "Stellaki, Alexandra"]
[Black "Kotsoglou, Evi"]
[Result "1/2-1/2"]
[ECO "D00"]
[WhiteElo "1241"]
[BlackElo "1424"]
[Annotator "NA"]
[PlyCount "69"]
[EventDate "2018.07.10"]
[EventType "team-tourn"]
[EventCountry "GRE"]
[SourceTitle "playchess.com"]
[Source "ChessBase"]
[SourceQuality "1"]
[TimeControl "40/5400+30:1800+30"]

1. d4 {[%emt 0:00:00]} d5 {[%emt 0:00:00]} 2. Bf4 {[%emt 0:00:00]} Nf6 {[%emt 0:00:18]} 3. e3 {[%emt 0:00:00]} Bf5 {[%emt 0:02:03]} 4. Bd3 {[%emt 0:01:38]} Bg6 {[%emt 0:03:58]} 5. Nf3 {[%emt 0:00:45]} Nbd7 {[%emt 0:07:01]} 6. c3 {[%emt 0:02:49]} e6 {[%emt 0:02:43]} 7. O-O {[%emt 0:00:24]} Be7 {[%emt 0:01:17]} 8. h3 {[%emt 0:01:43]} c5 {[%emt 0:09:52]} 9. Bxg6 {[%emt 0:04:38]} hxg6 {[%emt 0:00:34]} 10. Nbd2 {[%emt 0:00:37]} O-O {[%emt 0:06:05]} 11. Re1 {[%emt 0:06:48]} Rc8 {[%emt 0:05:18]} 12. Ne5 {[%emt 0:06:57]} a6 {[%emt 0:12:30]} 13. Nxd7 {[%emt 0:03:45]} Qxd7 {[%emt 0:03:37]} 14. Nf3 {[%emt 0:09:56]} b5 {[%emt 0:03:34]} 15. dxc5 {[%emt 0:01:42]} Bxc5 {[%emt 0:01:24]} 16. a3 {[%emt 0:04:56]} Rfe8 {[%emt 0:03:30]} 17. Ne5 {[%emt 0:04:11]} Qb7 {[%emt 0:02:42]} 18. Qf3 {[%emt 0:06:49]} Ne4 {[%emt 0:07:26]} 19. Rad1 {[%emt 0:01:33]} a5 {[%emt 0:06:51]} 20. Nd3 {[%emt 0:05:15]} Bf8 {[%emt 0:02:32]} 21. Qe2 {[%emt 0:02:03]} b4 {[%emt 0:02:28]} 22. cxb4 {[%emt 0:02:51]} axb4 {[%emt 0:00:23]} 23. f3 {[%emt 0:02:12]} Nf6 {[%emt 0:00:56]} 24. axb4 {[%emt 0:01:09]} Bxb4 {[%emt 0:01:26]} 25. Nxb4 {[%emt 0:00:09]} Qxb4 {[%emt 0:00:19]} 26. Be5 {[%emt 0:00:28]} Qb3 {[%emt 0:02:48]} 27. Qd3 {[%emt 0:02:28]} Qb4 {[%emt 0:07:07]} 28. Bc3 {[%emt 0:00:52]} Qb8 {[%emt 0:01:45]} 29. f4 {[%emt 0:05:52]} Ne4 {[%emt 0:00:44]} 30. Bd4 {[%emt 0:03:33]} Rc4 {[%emt 0:02:36]} 31. Rc1 {[%emt 0:01:25]} Rec8 {[%emt 0:00:29]} 32. Rxc4 {[%emt 0:01:45]} Rxc4 {[%emt 0:00:02]} 33. Rb1 {[%emt 0:13:17]} Rb4 {[%emt 0:01:01]} 34. Bc3 {[%emt 0:01:14]} Rc4 {[%emt 0:00:41]} 35. Bd4 {[%emt 0:00:50]} 1/2-1/2

[Event "46th GRE-chT Premier 2018"]
[Site "Rio Achaia"]
[Date "2018.07.10"]
[Round "1"]
[White "Zacharia, Aikaterini-Eirini"]
[Black "Kouta, Vasiliki"]
[Result "0-1"]
[ECO "C18"]
[WhiteElo "1234"]
[BlackElo "1350"]
[Annotator "NA"]
[PlyCount "58"]
[EventDate "2018.07.10"]
[EventType "team-tourn"]
[EventCountry "GRE"]
[SourceTitle "playchess.com"]
[Source "ChessBase"]
[SourceQuality "1"]
[TimeControl "40/5400+30:1800+30"]

1. e4 {[%emt 0:00:00]} e6 {[%emt 0:00:00]} 2. d4 {[%emt 0:00:00]} d5 {[%emt 0:00:00]} 3. Nc3 {[%emt 0:00:00]} Bb4 {[%emt 0:00:00]} 4. e5 {[%emt 0:00:12]} c5 {[%emt 0:00:19]} 5. a3 {[%emt 0:00:32]} Bxc3+ {[%emt 0:00:18]} 6. bxc3 {[%emt 0:00:17]} Qc7 {[%emt 0:07:01]} 7. h4 {[%emt 0:06:19]} cxd4 {[%emt 0:15:38]} 8. cxd4 {[%emt 0:13:18]} Qc3+ {[%emt 0:09:49]} 9. Bd2 {[%emt 0:19:14]} Qxd4 {[%emt 0:03:28]} 10. Nf3 {[%emt 0:12:20]} Qe4+ {[%emt 0:01:43]} 11. Be2 {[%emt 0:08:10]} Qa4 {[%emt 0:28:25]} 12. h5 {[%emt 0:08:33]} h6 {[%emt 0:05:21]} 13. Rh4 {[%emt 0:02:24]} Qd7 {[%emt 0:05:46]} 14. c4 {[%emt 0:07:37]} Ne7 {[%emt 0:03:35]} 15. a4 {[%emt 0:02:14]} Nbc6 {[%emt 0:03:35]} 16. Rc1 {[%emt 0:07:09]} b6 {[%emt 0:06:51]} 17. Qc2 {[%emt 0:04:16]} Bb7 {[%emt 0:02:23]} 18. Rg4 {[%emt 0:01:30]} Nf5 {[%emt 0:01:20]} 19. Bd3 {[%emt 0:01:40]} dxc4 {[%emt 0:01:52]} 20. Rxc4 {[%emt 0:01:33]} Nfd4 {[%emt 0:00:54]} 21. Qc3 {[%emt 0:01:41]} Nxf3+ {[%emt 0:00:27]} 22. gxf3 {[%emt 0:00:15]} O-O {[%emt 0:00:46]} 23. Be4 {[%emt 0:00:24]} Na5 {[%emt 0:00:39]} 24. Bxb7 {[%emt 0:01:08]} Qxb7 {[%emt 0:00:29]} 25. Rc7 {[%emt 0:00:51]} Qd5 {[%emt 0:00:09]} 26. Qe3 {[%emt 0:00:35]} Nb3 {[%emt 0:00:31]} 27. R1c3 {[%emt 0:00:27]} Nxd2 {[%emt 0:00:30]} 28. Qxd2 {[%emt 0:00:07]} Qxe5+ {[%emt 0:00:29]} 29. Re3 {[%emt 0:01:09]} Qxc7 {[%emt 0:00:14]} 0-1

[Event "46th GRE-chT Premier 2018"]
[Site "Rio Achaia"]
[Date "2018.07.10"]
[Round "1"]
[White "Tzachristas, Georgios"]
[Black "Marinakis, Hristos"]
[Result "0-1"]
[ECO "C54"]
[WhiteElo "1191"]
[BlackElo "1942"]
[Annotator "NA"]
[PlyCount "76"]
[EventDate "2018.07.10"]
[EventType "team-tourn"]
[EventCountry "GRE"]
[SourceTitle "playchess.com"]
[Source "ChessBase"]
[SourceQuality "1"]
[TimeControl "40/5400+30:1800+30"]

1. e4 {[%emt 0:00:00]} e5 {[%emt 0:00:00]} 2. Nf3 {[%emt 0:00:00]} Nc6 {[%emt 0:00:00]} 3. Bc4 {[%emt 0:00:02]} Bc5 {[%emt 0:00:00]} 4. c3 {[%emt 0:00:31]} Nf6 {[%emt 0:00:00]} 5. d3 {[%emt 0:00:08]} a6 {[%emt 0:00:23]} 6. Bb3 {[%emt 0:00:11]} d6 {[%emt 0:00:33]} 7. Nbd2 {[%emt 0:00:32]} O-O {[%emt 0:01:26]} 8. O-O {[%emt 0:00:33]} Ba7 {[%emt 0:04:26]} 9. h3 {[%emt 0:00:37]} Be6 {[%emt 0:04:14]} 10. Bc2 {[%emt 0:00:32]} d5 {[%emt 0:02:40]} 11. Re1 {[%emt 0:02:18]} Re8 {[%emt 0:03:38]} 12. Nf1 {[%emt 0:03:20]} h6 {[%emt 0:03:38]} 13. Ng3 {[%emt 0:02:01]} Qd7 {[%emt 0:01:37]} 14. Be3 {[%emt 0:16:07]} Bxe3 {[%emt 0:02:51]} 15. Rxe3 {[%emt 0:02:04]} Rad8 {[%emt 0:01:16]} 16. Re1 {[%emt 0:03:57]} Qc8 {[%emt 0:04:24]} 17. Qe2 {[%emt 0:04:52]} d4 {[%emt 0:04:33]} 18. c4 {[%emt 0:08:15]} b5 {[%emt 0:06:25]} 19. cxb5 {[%emt 0:08:53]} axb5 {[%emt 0:00:10]} 20. Rec1 {[%emt 0:02:08]} Qb7 {[%emt 0:06:07]} 21. a3 {[%emt 0:03:36]} Ra8 {[%emt 0:02:19]} 22. Bd1 {[%emt 0:12:24]} Ra6 {[%emt 0:06:40]} 23. Qc2 {[%emt 0:05:14]} Rea8 {[%emt 0:04:28]} 24. Nd2 {[%emt 0:05:10]} R8a7 {[%emt 0:09:44]} 25. b3 {[%emt 0:06:23]} Nb4 {[%emt 0:02:45]} 26. Qb1 {[%emt 0:04:46]} Rxa3 {[%emt 0:00:33]} 27. Rxa3 {[%emt 0:00:11]} Rxa3 {[%emt 0:00:06]} 28. Nf3 {[%emt 0:03:24]} Nd7 {[%emt 0:03:24]} 29. Nf1 {[%emt 0:02:24]} Na2 {[%emt 0:01:00]} 30. Qb2 {[%emt 0:01:58]} Nxc1 {[%emt 0:00:31]} 31. Qxa3 {[%emt 0:00:14]} Nxd3 {[%emt 0:00:08]} 32. Bc2 {[%emt 0:00:45]} Nf4 {[%emt 0:01:02]} 33. N1d2 {[%emt 0:01:05]} c5 {[%emt 0:01:20]} 34. Qa5 {[%emt 0:01:21]} c4 {[%emt 0:00:53]} 35. bxc4 {[%emt 0:00:42]} bxc4 {[%emt 0:00:08]} 36. Nxe5 {[%emt 0:00:07]} Nxe5 {[%emt 0:01:37]} 37. Qd8+ {[%emt 0:00:30]} Kh7 {[%emt 0:00:12]} 38. Qxd4 {[%emt 0:00:05]} Ne2+ {[%emt 0:00:05]} 0-1

[Event "46th GRE-chT Premier 2018"]
[Site "Rio Achaia"]
[Date "2018.07.10"]
[Round "1"]
[White "Isari, Angeliki"]
[Black "Kratimenou, Maria"]
[Result "1/2-1/2"]
[ECO "C01"]
[WhiteElo "1153"]
[BlackElo "1207"]
[Annotator "NA"]
[PlyCount "82"]
[EventDate "2018.07.10"]
[EventType "team-tourn"]
[EventCountry "GRE"]
[SourceTitle "playchess.com"]
[Source "ChessBase"]
[SourceQuality "1"]
[TimeControl "40/5400+30:1800+30"]

1. e4 {[%emt 0:00:00]} e6 {[%emt 0:00:00]} 2. d4 {[%emt 0:00:00]} d5 {[%emt 0:00:00]} 3. exd5 {[%emt 0:00:00]} exd5 {[%emt 0:00:00]} 4. Bd3 {[%emt 0:01:03]} Nc6 {[%emt 0:00:06]} 5. Nf3 {[%emt 0:00:27]} Bg4 {[%emt 0:00:29]} 6. c3 {[%emt 0:02:04]} Bd6 {[%emt 0:00:38]} 7. O-O {[%emt 0:05:33]} Nge7 {[%emt 0:00:59]} 8. Nbd2 {[%emt 0:05:40]} Qd7 {[%emt 0:00:51]} 9. Qc2 {[%emt 0:02:21]} f6 {[%emt 0:00:40]} 10. Re1 {[%emt 0:06:42]} O-O-O {[%emt 0:00:32]} 11. b4 {[%emt 0:12:20]} Rde8 {[%emt 0:03:44]} 12. a3 g5 {[%emt 0:12:34]} 13. Bb2 {[%emt 0:20:17]} h5 {[%emt 0:05:13]} 14. c4 {[%emt 0:06:51]} dxc4 {[%emt 0:00:43]} 15. Bxc4 {[%emt 0:03:23]} Bf5 {[%emt 0:15:33]} 16. Qb3 {[%emt 0:03:08]} Ng6 {[%emt 0:07:52]} 17. Bf7 {[%emt 0:12:10]} Ref8 {[%emt 0:01:41]} 18. Bxg6 {[%emt 0:02:11]} Bxg6 {[%emt 0:00:24]} 19. Nc4 {[%emt 0:01:43]} Bf7 {[%emt 0:04:29]} 20. Nxd6+ {[%emt 0:02:46]} Qxd6 {[%emt 0:00:15]} 21. Qd3 {[%emt 0:02:06]} Bd5 {[%emt 0:05:50]} 22. Rac1 {[%emt 0:02:08]} Kb8 {[%emt 0:03:14]} 23. Red1 {[%emt 0:02:20]} Rd8 {[%emt 0:11:31]} 24. Qf5 {[%emt 0:01:46]} Rhe8 {[%emt 0:05:04]} 25. Re1 {[%emt 0:02:12]} Rxe1+ {[%emt 0:00:49]} 26. Rxe1 {[%emt 0:00:10]} Bxf3 {[%emt 0:00:37]} 27. Qxf3 {[%emt 0:01:02]} Nxd4 {[%emt 0:06:51]} 28. Bxd4 {[%emt 0:00:17]} Qxd4 {[%emt 0:00:17]} 29. Qxh5 {[%emt 0:00:34]} Qc3 {[%emt 0:01:21]} 30. Qe8 {[%emt 0:00:17]} Qd2 {[%emt 0:02:47]} 31. h3 {[%emt 0:01:07]} a6 {[%emt 0:00:22]} 32. Qe3 {[%emt 0:00:28]} Qxe3 {[%emt 0:00:53]} 33. Rxe3 {[%emt 0:00:13]} Rd1+ {[%emt 0:00:56]} 34. Kh2 {[%emt 0:00:14]} Rd2 {[%emt 0:00:08]} 35. Kg3 {[%emt 0:00:32]} Kc8 {[%emt 0:01:53]} 36. Rf3 {[%emt 0:01:15]} Rd6 {[%emt 0:00:31]} 37. h4 {[%emt 0:00:49]} gxh4+ 38. Kxh4 {[%emt 0:00:05]} Kd7 {[%emt 0:01:33]} 39. Kh5 {[%emt 0:01:45]} Ke7 {[%emt 0:00:57]} 40. Kg6 {[%emt 0:00:00]} Re6 {[%emt 0:00:00]} 41. g4 {[%emt 0:03:25]} b6 {[%emt 0:01:57]} 1/2-1/2

[Event "46th GRE-chT Premier 2018"]
[Site "Rio Achaia"]
[Date "2018.07.10"]
[Round "1"]
[White "Golegos, Antonis"]
[Black "Chatzigavriil, Georgios"]
[Result "1-0"]
[ECO "C50"]
[WhiteElo "1136"]
[BlackElo "1318"]
[Annotator "NA"]
[PlyCount "91"]
[EventDate "2018.07.10"]
[EventType "team-tourn"]
[EventCountry "GRE"]
[SourceTitle "playchess.com"]
[Source "ChessBase"]
[SourceQuality "1"]
[TimeControl "40/5400+30:1800+30"]

1. e4 {[%emt 0:00:00]} e5 {[%emt 0:00:00]} 2. Nf3 {[%emt 0:00:00]} Nc6 {[%emt 0:00:00]} 3. Bc4 {[%emt 0:00:00]} Nf6 {[%emt 0:00:00]} 4. d3 {[%emt 0:01:53]} Bc5 {[%emt 0:00:28]} 5. Nc3 {[%emt 0:01:34]} d6 {[%emt 0:00:30]} 6. Bg5 {[%emt 0:01:13]} Be6 {[%emt 0:00:17]} 7. Bb3 {[%emt 0:02:35]} Qd7 {[%emt 0:00:57]} 8. Qd2 {[%emt 0:01:45]} Bb4 {[%emt 0:01:00]} 9. a3 {[%emt 0:01:59]} Ba5 {[%emt 0:00:22]} 10. Be3 {[%emt 0:04:07]} O-O-O {[%emt 0:01:48]} 11. Ba4 {[%emt 0:00:58]} a6 {[%emt 0:05:14]} 12. O-O-O {[%emt 0:04:28]} b5 {[%emt 0:10:10]} 13. Bb3 {[%emt 0:00:23]} Bxb3 {[%emt 0:01:27]} 14. cxb3 {[%emt 0:00:11]} d5 {[%emt 0:00:32]} 15. b4 {[%emt 0:01:30]} dxe4 {[%emt 0:16:14]} 16. dxe4 {[%emt 0:03:09]} Qxd2+ {[%emt 0:02:47]} 17. Rxd2 {[%emt 0:00:18]} Rd3 18. Rdd1 {[%emt 0:00:07]} Rd2 {[%emt 0:00:50]} 19. Bxd2 {[%emt 0:00:30]} Bb6 {[%emt 0:00:19]} 20. Rdf1 {[%emt 0:03:21]} Ng4 {[%emt 0:00:38]} 21. Nd1 {[%emt 0:08:11]} Nd4 {[%emt 0:03:49]} 22. Nxd4 {[%emt 0:01:58]} Bxd4 {[%emt 0:00:17]} 23. f3 {[%emt 0:00:20]} Nf6 {[%emt 0:01:03]} 24. Bc3 {[%emt 0:03:40]} Rd8 {[%emt 0:03:39]} 25. Kc2 {[%emt 0:04:18]} Nd7 {[%emt 0:06:53]} 26. Nf2 {[%emt 0:02:26]} Nb6 {[%emt 0:01:03]} 27. b3 {[%emt 0:04:03]} Kd7 {[%emt 0:06:21]} 28. Nd3 {[%emt 0:00:47]} Ke6 {[%emt 0:04:00]} 29. Rd1 {[%emt 0:03:21]} Nd7 {[%emt 0:04:42]} 30. Bxd4 {[%emt 0:14:13]} exd4 {[%emt 0:00:25]} 31. Nf4+ {[%emt 0:00:34]} Ke5 {[%emt 0:00:07]} 32. Ne2 {[%emt 0:01:23]} Nf6 {[%emt 0:00:55]} 33. Kd3 {[%emt 0:01:00]} g5 {[%emt 0:00:20]} 34. g3 {[%emt 0:00:31]} Nh5 {[%emt 0:00:18]} 35. Rc1 {[%emt 0:00:44]} Kd6 {[%emt 0:05:34]} 36. Nxd4 {[%emt 0:02:25]} f6 {[%emt 0:02:43]} 37. Ke3 {[%emt 0:00:52]} Ng7 {[%emt 0:03:19]} 38. Rc6+ {[%emt 0:00:25]} Kd7 {[%emt 0:01:31]} 39. Rxf6 {[%emt 0:01:09]} Re8 {[%emt 0:01:28]} 40. Rf7+ {[%emt 0:00:25]} Re7 {[%emt 0:00:17]} 41. Rxe7+ {[%emt 0:00:06]} Kxe7 {[%emt 0:00:13]} 42. Nf5+ {[%emt 0:00:08]} Nxf5+ {[%emt 0:00:16]} 43. exf5 {[%emt 0:00:07]} h5 {[%emt 0:00:24]} 44. Ke4 {[%emt 0:00:55]} Kf6 {[%emt 0:00:31]} 45. h3 {[%emt 0:00:47]} c6 {[%emt 0:00:20]} 46. g4 {[%emt 0:01:43]} 1-0

[Event "46th GRE-chT Premier 2018"]
[Site "Rio Achaia"]
[Date "2018.07.10"]
[Round "1"]
[White "Koukouliatas, Sotirios Georgios"]
[Black "Tsaknakis, Zisis"]
[Result "0-1"]
[ECO "A45"]
[WhiteElo "1130"]
[BlackElo "2170"]
[Annotator "NA"]
[PlyCount "50"]
[EventDate "2018.07.10"]
[EventType "team-tourn"]
[EventCountry "GRE"]
[SourceTitle "playchess.com"]
[Source "ChessBase"]
[SourceQuality "1"]
[TimeControl "40/5400+30:1800+30"]

1. d4 {[%emt 0:00:00]} Nf6 {[%emt 0:00:00]} 2. Bf4 {[%emt 0:00:00]} g6 {[%emt 0:00:00]} 3. e3 {[%emt 0:00:15]} Bg7 {[%emt 0:00:08]} 4. Nf3 {[%emt 0:00:11]} O-O {[%emt 0:00:11]} 5. Bd3 {[%emt 0:00:14]} d6 {[%emt 0:00:34]} 6. O-O {[%emt 0:01:16]} c5 {[%emt 0:01:30]} 7. c3 {[%emt 0:00:42]} Nc6 {[%emt 0:02:23]} 8. Bc2 {[%emt 0:02:17]} Qb6 {[%emt 0:08:36]} 9. Qc1 {[%emt 0:05:11]} Bg4 {[%emt 0:02:41]} 10. Nbd2 {[%emt 0:02:38]} Rac8 {[%emt 0:03:28]} 11. h3 {[%emt 0:07:43]} Be6 {[%emt 0:06:52]} 12. Bb3 {[%emt 0:12:21]} cxd4 {[%emt 0:10:24]} 13. exd4 {[%emt 0:06:35]} Nd5 {[%emt 0:00:23]} 14. Bh2 {[%emt 0:02:24]} Nxd4 {[%emt 0:13:19]} 15. Nxd4 {[%emt 0:03:44]} Bxd4 {[%emt 0:00:21]} 16. Nc4 {[%emt 0:00:33]} Qa6 {[%emt 0:00:10]} 17. cxd4 {[%emt 0:09:11]} b5 {[%emt 0:00:45]} 18. Qd1 {[%emt 0:04:22]} bxc4 {[%emt 0:00:05]} 19. Ba4 {[%emt 0:00:38]} c3 {[%emt 0:00:39]} 20. Bb3 {[%emt 0:07:00]} cxb2 {[%emt 0:00:39]} 21. Rb1 {[%emt 0:00:50]} Nc3 {[%emt 0:00:16]} 22. Bxe6 {[%emt 0:06:24]} Nxd1 {[%emt 0:01:28]} 23. Bxc8 {[%emt 0:00:20]} Rxc8 {[%emt 0:00:04]} 24. Rfxd1 {[%emt 0:00:14]} Qxa2 {[%emt 0:00:33]} 25. Bf4 {[%emt 0:01:55]} a5 {[%emt 0:00:05]} 0-1